fUSD/lending_fUSD_20240324
["ID","MTS","AMOUNT","RATE_DAILY","PERIOD"]
[320332434,1711301432429,-757.81936241,0.0001749,4]
[320332439,1711301432463,-576.41013639,0.0001749,4]
[320332443,1711301432498,-634.14,0.0001749,4]
[320332445,1711301432510,-1390.08668024,0.0001749,4]
[320332447,1711301432522,-2659.34613958,0.0001749,4]
[320332449,1711301432534,-11721.44421081,0.0001749,4]
[320332459,1711301438090,-219.44630914,0.0001748,2]
[320332460,1711301438315,-360.9119661,0.00017489,2]
[320332461,1711301438325,-258.15917987,0.00017489,2]
[320332462,1711301438338,-888.95229078,0.0001749,4]
[320332491,1711301438682,-596.04655466,0.0001749,4]
[320332493,1711301438695,-299.33999878,0.0001749,4]
[320332503,1711301438773,-385.46466382,0.0001749,4]
[320332505,1711301438784,-60682.12813123,0.0001749,4]
[320332507,1711301438796,-128589.78331399,0.0001749,4]
[320332509,1711301438807,-1878.4510479,0.0001749,4]
[320332512,1711301438819,-1371.09216847,0.0001749,4]
[320332519,1711301438873,-288.41386898,0.00017489,2]
[320332521,1711301438884,-833.37394146,0.00017489,2]
[320332642,1711301440092,-258.94430429,0.00017489,2]
[320332644,1711301440102,-912.18563614,0.0001749,4]
[320332651,1711301440156,-1092.27862809,0.0001749,4]
[320332653,1711301440168,-3183.80000012,0.0001749,4]
[320332665,1711301440284,-63583.21979977,0.0001749,4]
[320332670,1711301440486,-803.39977189,0.0001749,4]
[320332671,1711301440498,-13253.22423378,0.0001749,4]
[320332697,1711301443274,-262.44,0.00016832,2]
[320332698,1711301443283,-1012.35856888,0.00017478,2]
[320332699,1711301443297,-273.59169232,0.00017478,2]
[320332700,1711301443340,-2890.25719377,0.00017478,2]
[320332701,1711301443348,-65.17280317,0.00017479,2]
[320332702,1711301443360,-200.59121996,0.00017479,2]
[320332703,1711301443373,-726.80646888,0.0001749,4]
[320332704,1711301443384,-1319.17271379,0.0001749,4]
[320332705,1711301443396,-997.650002,0.0001749,4]
[320332706,1711301443407,-1692.3878234,0.0001749,4]
[320332707,1711301443419,-3333.9,0.0001749,4]
[320332708,1711301443831,-625.97747951,0.0001749,4]
[320332709,1711301443843,-7583.80061767,0.0001749,4]
[320332710,1711301443854,-761.24966532,0.0001749,4]
[320332711,1711301443901,-4744.02885615,0.0001749,4]
[320332712,1711301443913,-3923.03578535,0.0001749,4]
[320332749,1711301446302,-340.72000004,0.00017489,2]
[320332762,1711301446596,-2258.395728,0.00017489,2]
[320332764,1711301446610,-1139.88560892,0.00017489,2]
[320332765,1711301446620,-2174.51405561,0.0001749,4]
[320332766,1711301446638,-9033.85601026,0.0001749,4]
[320332768,1711301446654,-84078.78481976,0.0001749,4]
[320332769,1711301446664,-151.0,0.0001749,2]
[320332770,1711301446674,-151.0,0.0001749,2]
[320332771,1711301446683,-151.0,0.0001749,2]
[320332772,1711301446692,-322.026784,0.0001749,2]
[320332774,1711301446701,-151.348099,0.0001749,2]
[320332775,1711301446710,-322.026784,0.0001749,2]
[320332776,1711301446719,-151.573516,0.0001749,2]
[320332777,1711301446729,-151.573516,0.0001749,2]
[320332778,1711301446738,-151.0,0.0001749,2]
[320332779,1711301446747,-330.036978,0.0001749,2]
[320332780,1711301446757,-649.829886,0.0001749,2]
[320332781,1711301446765,-649.829886,0.0001749,2]
[320332782,1711301446774,-151.0,0.0001749,2]
[320332783,1711301446783,-330.036978,0.0001749,2]
[320332784,1711301446792,-361.808208,0.0001749,2]
[320332785,1711301446801,-361.808208,0.0001749,2]
[320332786,1711301446810,-151.0,0.0001749,2]
[320332787,1711301446819,-151.0,0.0001749,2]
[320332788,1711301446828,-1124.318627,0.0001749,2]
[320332789,1711301446837,-1124.318627,0.0001749,2]
[320332790,1711301446846,-151.0,0.0001749,2]
[320332791,1711301446856,-189.868752,0.0001749,2]
[320332792,1711301446865,-466.324357,0.0001749,2]
[320332793,1711301446881,-189.868752,0.0001749,2]
[320332794,1711301446890,-466.324357,0.0001749,2]
[320332795,1711301446899,-151.0,0.0001749,2]
[320332796,1711301446908,-151.0,0.0001749,2]
[320332797,1711301446917,-151.0,0.0001749,2]
[320332798,1711301446926,-151.0,0.0001749,2]
[320332799,1711301446935,-151.0,0.0001749,2]
[320332800,1711301446944,-151.0,0.0001749,2]
[320332801,1711301446953,-151.0,0.0001749,2]
[320332802,1711301446963,-663.918814,0.0001749,2]
[320332803,1711301446972,-663.918814,0.0001749,2]
[320332804,1711301446981,-151.0,0.0001749,2]
[320332805,1711301446990,-151.0,0.0001749,2]
[320332806,1711301446999,-151.0,0.0001749,2]
[320332807,1711301447009,-217.942591,0.0001749,2]
[320332808,1711301447018,-151.0,0.0001749,2]
[320332809,1711301447028,-217.942591,0.0001749,2]
[320332810,1711301447036,-151.0,0.0001749,2]
[320332811,1711301447046,-151.0,0.0001749,2]
[320332812,1711301447055,-213.05015,0.0001749,2]
[320332813,1711301447064,-213.05015,0.0001749,2]
[320332814,1711301447073,-151.670005,0.0001749,2]
[320332815,1711301447082,-151.0,0.0001749,2]
[320332816,1711301447091,-254.17189,0.0001749,2]
[320332817,1711301447102,-151.0,0.0001749,2]
[320332818,1711301447111,-151.0,0.0001749,2]
[320332819,1711301447121,-151.0,0.0001749,2]
[320332820,1711301447132,-151.0,0.0001749,2]
[320332821,1711301447141,-151.0,0.0001749,2]
[320332822,1711301447152,-151.0,0.0001749,2]
[320332823,1711301447160,-151.0,0.0001749,2]
[320332824,1711301447169,-151.0,0.0001749,2]
[320332825,1711301447179,-151.0,0.0001749,2]
[320332826,1711301447188,-219.44630914,0.0001749,2]
[320332827,1711301447207,-151.0,0.0001749,2]
[320332828,1711301447218,-151.0,0.0001749,2]
[320332829,1711301447227,-151.0,0.0001749,2]
[320332830,1711301447237,-155.63959452,0.00017498,2]
[320332831,1711301447247,-3244.31381251,0.00017498,2]
[320332832,1711301447257,-1052.7667227,0.00017499,2]
[320332833,1711301447267,-5580.95283091,0.00017499,2]
[320332834,1711301447276,-7555.19367537,0.00017499,2]
[320332835,1711301447286,-155.0,0.00017499,2]
[320332836,1711301447295,-365.00835102,0.00017499,2]
[320332837,1711301447305,-342.96920747,0.00017499,2]
[320332838,1711301447314,-1697.46407546,0.00017499,2]
[320332839,1711301447323,-300.0,0.00017499,2]
[320332840,1711301447334,-300.0,0.00017499,2]
[320332841,1711301447343,-90337.8545711,0.000175,2]
[320332842,1711301447357,-65824.64405621,0.000175,2]
[320332843,1711301447406,-595.485,0.00014911,2]
[320332844,1711301453345,475.11403505,0.00012,10]
[320332896,1711302457818,1874.83409483,0.0002524,30]
[320332898,1711302579021,215360.11857209,0.0002524,30]
[320332902,1711302632292,-3918.62589467,0.00013473,2]
[320332903,1711302632403,-711.36212261,0.00013473,2]
[320332904,1711302632516,-570.67248778,0.00013473,2]
[320332908,1711302638232,-155.56822984,0.00013473,2]
[320332909,1711302638242,-3739.00133696,0.00013473,2]
[320332910,1711302638251,-341.13740668,0.00013474,2]
[320332911,1711302638261,-259.26407136,0.00013474,2]
[320332912,1711302638271,-1061.57481259,0.00013474,2]
[320332913,1711302638280,-179.99974213,0.00013475,2]
[320332914,1711302638289,-155.0,0.00013476,2]
[320332915,1711302638299,-1229.28872733,0.00013476,2]
[320332916,1711302638308,-193.71088867,0.00013477,2]
[320332917,1711302638317,-3238.0,0.00013477,2]
[320332918,1711302638327,-160.47350713,0.00013478,2]
[320332919,1711302638337,-5942.00829452,0.00013478,2]
[320332920,1711302638347,-4004.14613871,0.00013479,2]
[320332921,1711302638356,-1616.90102781,0.00013497,2]
[320332922,1711302638365,-447.2,0.00013511,2]
[320332923,1711302638375,-160.76555808,0.00013517,2]
[320332924,1711302638385,-827.94,0.00013622,2]
[320332925,1711302638394,-1000.0,0.00014,2]
[320332926,1711302638404,-265.38,0.00014728,2]
[320332927,1711302638415,-818.41,0.00014747,2]
[320332928,1711302638424,-250.0,0.00014788,2]
[320332929,1711302638433,-499.99,0.00014804,2]
[320332930,1711302638442,-1000.0,0.00014861,2]
[320332931,1711302638452,-1548.19,0.00014911,2]
[320332932,1711302638461,-250.0,0.00014923,2]
[320332933,1711302638470,-175.02,0.00015276,2]
[320332934,1711302638480,-614.0498144,0.00015325,2]
[320332935,1711302638489,-239.94,0.00015368,2]
[320332936,1711302638498,-239.94,0.0001541,2]
[320332937,1711302638507,-239.94,0.00015452,2]
[320332938,1711302638517,-239.94,0.00015494,2]
[320332939,1711302638526,-239.94,0.00015536,2]
[320332940,1711302638537,-239.94,0.00015578,2]
[320332941,1711302638546,-239.94,0.0001562,2]
[320332942,1711302638556,-239.94,0.00015662,2]
[320332943,1711302638565,-239.94,0.00015704,2]
[320332944,1711302638575,-239.94,0.00015746,2]
[320332945,1711302638585,-239.94,0.00015788,2]
[320332946,1711302638594,-239.94,0.0001583,2]
[320332947,1711302638604,-239.94,0.00015872,2]
[320332948,1711302638615,-827.94,0.00015886,2]
[320332950,1711302638625,-239.94,0.00015915,2]
[320332952,1711302638634,-239.94,0.00015957,2]
[320332953,1711302638647,-239.94,0.00015999,2]
[320332955,1711302638656,-239.94,0.00016041,2]
[320332957,1711302638665,-239.94,0.00016083,2]
[320332960,1711302638675,-239.94,0.00016125,2]
[320332962,1711302638685,-150.0,0.000162,2]
[320332964,1711302638694,-167.47,0.00016337,2]
[320332966,1711302638703,-1037.11862338,0.00016437,2]
[320332968,1711302638713,-1383.77,0.00016438,2]
[320332969,1711302638723,-265.38,0.00016569,2]
[320332971,1711302638733,-1000.0,0.00016718,2]
[320332973,1711302638743,-10399.17271703,0.00016751,2]
[320332975,1711302638753,-1062.2,0.00016878,2]
[320332977,1711302638762,-5000.0,0.00017119,2]
[320332980,1711302638772,-51665.0,0.000172,2]
[320332982,1711302638781,-6477.5613,0.000172,2]
[320332984,1711302638792,-4425.9544,0.000172,2]
[320332986,1711302638802,-1000.0,0.000172,2]
[320332988,1711302638811,-167.87,0.00017292,2]
[320332989,1711302638822,-80560.61296248,0.000173,2]
[320333031,1711302639199,-655.41,0.000173,2]
[320333033,1711302639239,-848.26710872,0.000173,2]
[320333108,1711302640320,-1974.01335654,0.000173,2]
[320333130,1711302640541,-258.765,0.000173,2]
[320333132,1711302640713,-814.30540455,0.000173,2]
[320333133,1711302640726,-958.60250763,0.000173,2]
[320333142,1711302643531,-160.47350713,0.00013472,2]
[320333143,1711302643544,-159.53,0.00016838,2]
[320333144,1711302643554,-159.53,0.00016948,2]
[320333145,1711302643563,-159.53,0.00017058,2]
[320333146,1711302643573,-13930.02366008,0.000173,2]
[320333147,1711302643583,-445.64,0.00017371,2]
[320333148,1711302643592,-347.22,0.00017371,2]
[320333149,1711302643602,-347.22,0.00017371,2]
[320333150,1711302643612,-347.22,0.00017371,2]
[320333151,1711302643623,-347.22,0.00017371,2]
[320333152,1711302643633,-347.22,0.00017371,2]
[320333153,1711302643642,-347.22,0.00017371,2]
[320333154,1711302643657,-347.22,0.00017371,2]
[320333155,1711302643667,-347.22,0.00017371,2]
[320333156,1711302643677,-3316.0105,0.0001739,2]
[320333157,1711302643686,-34647.51450053,0.0001739,2]
[320333158,1711302643721,-2626.42433702,0.0001739,2]
[320333169,1711302646356,-159.53,0.00017167,2]
[320333171,1711302646364,-159.53,0.00017277,2]
[320333173,1711302646374,-654.24801758,0.0001739,2]
[320333175,1711302646386,-1110.093885,0.0001739,2]
[320333178,1711302646508,-449.86075987,0.0001739,2]
[320333179,1711302646519,-300.0,0.0001739,2]
[320333180,1711302646528,-13900.8881,0.0001739,2]
[320333181,1711302646538,-4136.778,0.0001739,2]
[320333182,1711302646548,-155.0,0.00017399,2]
[320333183,1711302646558,-100000.0,0.000174,2]
[320333184,1711302646568,-331.923,0.000174,2]
[320333185,1711302646577,-8187.24179643,0.000174,2]
[320333186,1711302646587,-17586.49154503,0.000174,2]
[320333187,1711302646598,-416.04866022,0.000174,2]
[320333188,1711302646618,-472.214,0.000174,2]
[320333189,1711302646629,-549.35,0.000174,2]
[320333190,1711302646642,-13019.90919475,0.000174,2]
[320333191,1711302646652,-177.99290905,0.000174,2]
[320333192,1711302646661,-160.76555808,0.000174,2]
[320333193,1711302646670,-377.59042342,0.000174,2]
[320333194,1711302646680,-800.0,0.00017479,2]
[320333195,1711302646690,-818.41,0.00017486,2]
[320333196,1711302646701,-373.17557864,0.00017488,2]
[320333197,1711302646711,-219.44630914,0.0001749,2]
[320333198,1711302646721,-155.0,0.00017498,2]
[320333199,1711302646731,-1052.7667227,0.00017498,2]
[320333200,1711302646740,-3244.31381251,0.00017498,2]
[320333201,1711302646750,-365.00835102,0.00017498,2]
[320333203,1711302646759,-7555.19367537,0.00017498,2]
[320333205,1711302646769,-155.63959452,0.00017498,2]
[320333207,1711302646778,-342.96920747,0.00017498,2]
[320333209,1711302646787,-195.31186243,0.00017498,2]
[320333211,1711302646796,-283.28469811,0.00017498,2]
[320333213,1711302646806,-200.54147775,0.00017498,2]
[320333215,1711302646815,-155.67171058,0.00017498,2]
[320333217,1711302646825,-300.0,0.00017499,2]
[320333219,1711302646834,-300.0,0.00017499,2]
[320333221,1711302646844,-3388.90307589,0.000175,2]
[320333222,1711302646856,-65447.37809608,0.000175,2]
[320333228,1711302646966,-1906.87830811,0.000175,2]
[320333253,1711302657678,-195.87310251,0.00016624,2]
[320333254,1711302660386,-195.87310251,0.00016624,2]
[320333255,1711302661590,-195.87310251,0.00016624,2]
[320333256,1711302663266,-195.87310251,0.00016624,2]
[320333257,1711302679275,331.95445473,0.00014869,2]
[320333260,1711302711084,403.86998574,0.00014869,2]
[320333261,1711302724841,25.05555953,0.00014869,2]
[320333281,1711303021252,718.14640623,0.00024,120]
[320333319,1711303831449,-251.06835013,0.00013708,2]
[320333320,1711303831721,-555.11925325,0.00013708,2]
[320333321,1711303831730,-3739.00133696,0.00013709,2]
[320333322,1711303831739,-599.31806171,0.00013715,2]
[320333323,1711303831778,-255.02193829,0.00013715,2]
[320333324,1711303831787,-150.0,0.00014099,2]
[320333325,1711303831796,-150.0,0.00014099,2]
[320333326,1711303831805,-980.74732502,0.000141,2]
[320333327,1711303831834,-326.33051176,0.000141,2]
[320333328,1711303831850,-922.31656059,0.000141,2]
[320333329,1711303831891,-676.27448871,0.000141,2]
[320333330,1711303831903,-353.00300357,0.000141,2]
[320333331,1711303831914,-815.58805588,0.000141,2]
[320333332,1711303831947,-517.9614323,0.000141,2]
[320333333,1711303831959,-803.1102161,0.000141,2]
[320333334,1711303832005,-282.48154404,0.000141,2]
[320333335,1711303832014,-18.15089783,0.00014314,2]
[320333336,1711303832027,-1093.65780612,0.00014314,2]
[320333337,1711303832036,-641.5,0.000155,2]
[320333338,1711303832048,-2875.16,0.00015519,2]
[320333339,1711303832057,-250.0,0.00015539,2]
[320333340,1711303832067,-400.0,0.00015575,2]
[320333341,1711303832078,-167.48,0.00015595,2]
[320333342,1711303832088,-4418.3058976,0.00015597,2]
[320333378,1711303837452,-441.19354769,0.00013707,2]
[320333380,1711303837462,-19471.6941024,0.00015597,2]
[320333382,1711303837472,-250.0,0.00015611,2]
[320333384,1711303837481,-613.43,0.00015614,2]
[320333385,1711303837490,-499.99,0.00015614,2]
[320333387,1711303837499,-210.23,0.00015636,2]
[320333389,1711303837509,-600.0,0.00015693,2]
[320333390,1711303837518,-173.78,0.0001572,2]
[320333392,1711303837527,-611.4,0.00015759,2]
[320333394,1711303837536,-162.26,0.00015762,2]
[320333395,1711303837545,-162.26,0.00015844,2]
[320333397,1711303837554,-999.99,0.00015899,2]
[320333399,1711303837563,-162.26,0.00015926,2]
[320333401,1711303837573,-854.34,0.00015979,2]
[320333402,1711303837583,-162.26,0.00016008,2]
[320333403,1711303837592,-162.26,0.00016091,2]
[320333404,1711303837601,-162.26,0.00016173,2]
[320333405,1711303837610,-162.26,0.00016255,2]
[320333406,1711303837619,-162.26,0.00016337,2]
[320333408,1711303837628,-162.26,0.00016419,2]
[320333410,1711303837638,-151.67,0.00016441,2]
[320333412,1711303837647,-165.91,0.00016442,2]
[320333413,1711303837656,-151.67,0.00016471,2]
[320333414,1711303837665,-151.67,0.00016501,2]
[320333415,1711303837675,-162.26,0.00016501,2]
[320333416,1711303837685,-151.67,0.0001653,2]
[320333417,1711303837695,-151.67,0.0001656,2]
[320333418,1711303837705,-162.26,0.00016583,2]
[320333419,1711303837714,-151.67,0.0001659,2]
[320333420,1711303837723,-151.67,0.0001662,2]
[320333421,1711303837732,-151.67,0.0001665,2]
[320333422,1711303837741,-151.67,0.0001668,2]
[320333423,1711303837750,-151.67,0.0001671,2]
[320333424,1711303837759,-151.67,0.0001674,2]
[320333425,1711303837768,-151.67,0.0001677,2]
[320333426,1711303837778,-150.0,0.00017016,2]
[320333427,1711303837787,-150.0,0.00017048,2]
[320333428,1711303837796,-1687.6875,0.000172,2]
[320333430,1711303837805,-195.87310251,0.00017311,2]
[320333432,1711303837815,-7223.50768741,0.00017315,2]
[320333434,1711303837824,-1000.0,0.0001738,2]
[320333436,1711303837836,-29952.34318009,0.0001738,2]
[320333464,1711303838241,-568.94985213,0.0001738,2]
[320333465,1711303838253,-453.30570109,0.0001738,2]
[320333466,1711303838264,-1780.0858619,0.0001738,2]
[320333467,1711303838281,-320.55082822,0.0001738,2]
[320333468,1711303838292,-25599.70297657,0.0001738,2]
[320333469,1711303838301,-918.32091191,0.00017398,2]
[320333470,1711303838311,-427.10199016,0.00017398,2]
[320333471,1711303838319,-300.77186399,0.000174,2]
[320333472,1711303838328,-9528.1834874,0.00017424,2]
[320333473,1711303838337,-535.16693155,0.00017478,2]
[320333474,1711303838346,-160.71992659,0.00017478,2]
[320333475,1711303838355,-155.0,0.00017478,2]
[320333476,1711303838364,-1216.95108878,0.00017478,2]
[320333477,1711303838372,-7080.46027867,0.00017478,2]
[320333478,1711303838382,-249.88506931,0.00017479,2]
[320333479,1711303838391,-800.0,0.00017479,2]
[320333480,1711303838400,-398723.0816332,0.0001748,4]
[320333481,1711303838409,-219.44630914,0.0001749,2]
[320333482,1711303838419,-7441.63241139,0.00017498,2]
[320333483,1711303838428,-684.82782894,0.00017498,2]
[320333484,1711303838438,-4920.01422415,0.00017498,2]
[320333485,1711303838447,-7386.85306779,0.00017498,2]
[320333486,1711303838456,-2573.55391495,0.00017499,5]
[320333487,1711303838465,-1104.13838543,0.00017499,2]
[320333488,1711303838474,-612.56919068,0.00017499,2]
[320333489,1711303838484,-155.0,0.00017499,2]
[320333490,1711303838493,-5580.95283091,0.00017499,2]
[320333491,1711303838502,-246.90802045,0.00017499,2]
[320333492,1711303838511,-173.01265132,0.00017499,2]
[320333493,1711303838521,-445.17249158,0.00017499,2]
[320333494,1711303838530,-300.02,0.00017499,2]
[320333495,1711303838539,-5008.75142261,0.00017499,2]
[320333496,1711303838548,-272.72654944,0.00017499,2]
[320333497,1711303838558,-193.54858059,0.00017499,2]
[320333498,1711303838567,-478.38543365,0.00017499,2]
[320333499,1711303838576,-298.58162886,0.00017499,2]
[320333500,1711303838586,-376.95798032,0.00017499,2]
[320333501,1711303838596,-343.78117477,0.00017499,5]
[320333502,1711303838605,-491687.05392958,0.000175,2]
[320333503,1711303838614,-444.00043176,0.000175,2]
[320333504,1711303838623,-1697.41839639,0.000175,2]
[320333505,1711303838632,-479.0,0.000175,2]
[320333506,1711303838641,-3000.0,0.000175,2]
[320333507,1711303838650,-16812.4717851,0.000175,2]
[320333508,1711303838659,-127245.8827998,0.000175,2]
[320333509,1711303838668,-3719.22,0.000175,2]
[320333510,1711303838677,-400.0,0.000175,6]
[320333511,1711303838687,-400.0,0.00017521,2]
[320333512,1711303838696,-427.10199014,0.00017524,2]
[320333513,1711303838705,-964.0,0.00017566,2]
[320333514,1711303838714,-900.0,0.000176,6]
[320333515,1711303838723,-200.0,0.00017608,2]
[320333516,1711303838732,-918.32091187,0.00017611,2]
[320333517,1711303838742,-427.10199014,0.00017649,2]
[320333518,1711303838751,-9528.18348733,0.00017649,2]
[320333519,1711303838760,-600.0,0.00017654,2]
[320333520,1711303838769,-173.78,0.00017686,2]
[320333521,1711303838778,-1400.0,0.000177,6]
[320333522,1711303838787,-1813.0,0.000177,2]
[320333523,1711303838797,-500.0,0.00017746,2]
[320333524,1711303838806,-500.0,0.00017746,2]
[320333525,1711303838815,-500.0,0.00017746,2]
[320333526,1711303838824,-311.2602,0.00017746,2]
[320333527,1711303838834,-1000.0,0.00017746,2]
[320333528,1711303838843,-1000.0,0.00017746,2]
[320333529,1711303838852,-1000.0,0.00017746,2]
[320333530,1711303838861,-1000.0,0.00017746,2]
[320333531,1711303838870,-1000.0,0.00017746,2]
[320333532,1711303838879,-1000.0,0.00017746,2]
[320333533,1711303838888,-1000.0,0.00017746,2]
[320333534,1711303838897,-1000.0,0.00017746,2]
[320333535,1711303838906,-1000.0,0.00017746,2]
[320333536,1711303838915,-1000.0,0.00017746,2]
[320333537,1711303838923,-1000.0,0.00017746,2]
[320333538,1711303838932,-1000.0,0.00017746,2]
[320333539,1711303838941,-1000.0,0.00017746,2]
[320333540,1711303838950,-1000.0,0.00017746,2]
[320333541,1711303838959,-1000.0,0.00017746,2]
[320333542,1711303838968,-1000.0,0.00017746,2]
[320333543,1711303838977,-1000.0,0.00017746,2]
[320333544,1711303838986,-1000.0,0.00017746,2]
[320333545,1711303838995,-1000.0,0.00017746,2]
[320333546,1711303839003,-1000.0,0.00017746,2]
[320333547,1711303839013,-1000.0,0.00017746,2]
[320333548,1711303839023,-1000.0,0.00017746,2]
[320333549,1711303839033,-1000.0,0.00017746,2]
[320333550,1711303839043,-1000.0,0.00017746,2]
[320333551,1711303839053,-1000.0,0.00017746,2]
[320333552,1711303839063,-1000.0,0.00017746,2]
[320333553,1711303839072,-1000.0,0.00017746,2]
[320333554,1711303839083,-1000.0,0.00017746,2]
[320333555,1711303839092,-1000.0,0.00017746,2]
[320333556,1711303839101,-1000.0,0.00017746,2]
[320333557,1711303839110,-1000.0,0.00017746,2]
[320333558,1711303839120,-1000.0,0.00017746,2]
[320333559,1711303839130,-1000.0,0.00017746,2]
[320333560,1711303839139,-1000.0,0.00017746,2]
[320333561,1711303839148,-1000.0,0.00017746,2]
[320333562,1711303839157,-1000.0,0.00017746,2]
[320333563,1711303839166,-1000.0,0.00017746,2]
[320333564,1711303839175,-1000.0,0.00017746,2]
[320333565,1711303839184,-1000.0,0.00017746,2]
[320333566,1711303839193,-497.2753,0.00017746,2]
[320333567,1711303839203,-500.0,0.00017746,2]
[320333568,1711303839211,-500.0,0.00017746,2]
[320333569,1711303839221,-500.0,0.00017746,2]
[320333570,1711303839230,-514.6696,0.00017746,2]
[320333571,1711303839240,-5000.0,0.00017771,2]
[320333573,1711303839249,-427.10199014,0.00017775,2]
[320333574,1711303839259,-800.0,0.00017781,2]
[320333575,1711303839268,-88354.29245324,0.00017799,2]
[320333576,1711303839278,-165.91,0.00017799,2]
[320333577,1711303839287,-1900.0,0.000178,6]
[320333578,1711303839296,-164.64,0.00017808,10]
[320333579,1711303839305,-918.32091187,0.00017824,2]
[320333580,1711303839315,-200.0,0.00017854,2]
[320333581,1711303839324,-800.0,0.00017854,2]
[320333582,1711303839334,-200.0,0.00017854,2]
[320333583,1711303839342,-200.0,0.00017855,2]
[320333584,1711303839351,-800.0,0.00017855,2]
[320333587,1711303839360,-800.0,0.00017855,2]
[320333589,1711303839369,-200.0,0.00017855,2]
[320333591,1711303839378,-200.0,0.00017855,2]
[320333593,1711303839387,-9528.18348733,0.00017874,2]
[320333595,1711303839396,-7500.0,0.00017888,2]
[320333596,1711303839405,-198.59407589,0.00017898,2]
[320333597,1711303839414,-259.96726704,0.00017898,2]
[320333598,1711303839423,-155.0,0.00017898,2]
[320333599,1711303839431,-155.0,0.00017898,2]
[320333605,1711303839663,-2400.0,0.000179,6]
[320333606,1711303839674,-2789.7091309,0.000179,2]
[320333607,1711303839684,-151.348099,0.000179,2]
[320333608,1711303839693,-151.0,0.000179,2]
[320333609,1711303839703,-151.0,0.000179,2]
[320333610,1711303839712,-151.0,0.000179,2]
[320333611,1711303839721,-151.0,0.000179,2]
[320333612,1711303839731,-151.0,0.000179,2]
[320333613,1711303839740,-151.0,0.000179,2]
[320333614,1711303839750,-151.0,0.000179,2]
[320333615,1711303839759,-151.0,0.000179,2]
[320333616,1711303839768,-151.0,0.000179,2]
[320333617,1711303839778,-151.0,0.000179,2]
[320333618,1711303839787,-151.0,0.000179,2]
[320333619,1711303839797,-151.0,0.000179,2]
[320333620,1711303839806,-151.0,0.000179,2]
[320333621,1711303839816,-151.0,0.000179,2]
[320333622,1711303839826,-151.0,0.000179,2]
[320333623,1711303839836,-151.0,0.000179,2]
[320333624,1711303839845,-151.0,0.000179,2]
[320333625,1711303839854,-151.0,0.000179,2]
[320333626,1711303839863,-245.19,0.000179,2]
[320333627,1711303839872,-245.19,0.000179,2]
[320333628,1711303839882,-151.0,0.000179,2]
[320333629,1711303839891,-151.0,0.000179,2]
[320333630,1711303839900,-151.146989,0.000179,2]
[320333631,1711303839909,-151.0,0.000179,2]
[320333632,1711303839919,-151.0,0.000179,2]
[320333633,1711303839928,-156.843687,0.000179,2]
[320333634,1711303839938,-156.843687,0.000179,2]
[320333635,1711303839947,-151.0,0.000179,2]
[320333636,1711303839955,-151.0,0.000179,2]
[320333637,1711303839965,-151.0,0.000179,2]
[320333638,1711303839974,-1203.541575,0.000179,2]
[320333639,1711303839983,-1203.541575,0.000179,2]
[320333640,1711303839992,-151.0,0.000179,2]
[320333641,1711303840001,-151.0,0.000179,2]
[320333642,1711303840010,-151.0,0.000179,2]
[320333643,1711303840019,-151.0,0.000179,2]
[320333644,1711303840029,-1607.649025,0.000179,2]
[320333645,1711303840039,-1607.649025,0.000179,2]
[320333646,1711303840048,-151.0,0.000179,2]
[320333647,1711303840058,-151.0,0.000179,2]
[320333648,1711303840068,-151.0,0.000179,2]